bitfinex/quotes_BTCUSD_20220204
["timestamp","ask_amount","ask_price","bid_price","bid_amount"]
[1643943262178,0.08945899,37366.0,37365.0,0.00281578]
[1643943262475,0.18945899,37366.0,37365.0,0.00281578]
[1643943263176,0.53983399,37366.0,37365.0,0.00281578]
[1643943263377,0.55,37365.0,37363.0,0.64140997]
[1643943263576,0.350375,37364.0,37363.0,0.64140997]
[1643943263776,0.2,37364.0,37363.0,0.64140997]
[1643943263977,0.15,37364.0,37363.0,0.64140997]
[1643943264177,0.800375,37364.0,37363.0,0.64140997]
[1643943264378,1.300375,37364.0,37363.0,0.64140997]
[1643943264578,0.15,37364.0,37363.0,0.41358525]
[1643943264778,1.000375,37364.0,37363.0,0.41358525]
[1643943264978,0.65,37364.0,37363.0,0.41358525]
[1643943265233,1.100375,37364.0,37363.0,0.41358525]
[1643943265625,0.500375,37364.0,37363.0,0.41358525]
[1643943266024,0.066931,37363.0,37361.0,0.01]
[1643943266224,0.066931,37363.0,37362.0,0.00076891]
[1643943267225,0.32269302,37367.0,37361.0,0.01]
[1643943267427,0.32269302,37367.0,37361.0,0.01076892]
[1643943267428,0.05,37363.0,37361.0,0.01076892]
[1643943267628,0.31050025,37367.0,37361.0,0.23859364]
[1643943268228,0.06693,37366.0,37361.0,0.23859364]
[1643943268427,0.066929,37365.0,37361.0,0.65782472]
[1643943268628,0.066929,37365.0,37362.0,0.00076891]
[1643943269274,0.116929,37365.0,37362.0,0.00076891]
[1643943269475,0.183861,37365.0,37362.0,0.00076891]
[1643943269675,0.32003785,37364.0,37361.0,0.43]
[1643943269874,0.42003785,37364.0,37362.0,0.00076891]
[1643943270074,0.183861,37365.0,37362.0,0.00076891]
[1643943270874,0.183861,37365.0,37361.0,0.43]
[1643943271176,0.30959899,37364.0,37362.0,0.00076891]
[1643943271775,0.05,37363.0,37362.0,0.00076891]
[1643943272078,0.05,37363.0,37356.0,0.082]
[1643943272079,2.7045057,37363.0,37356.0,0.082]
[1643943272282,2.4469811,37357.0,37356.0,0.082]
[1643943272476,2.4469811,37357.0,37354.0,0.00042066]
[1643943272477,2.150375,37356.0,37354.0,0.00042066]
[1643943272731,1.6466061,37355.0,37353.0,0.0033939]
[1643943272925,0.84460051,37354.0,37353.0,0.0033939]
[1643943273124,1.10327408,37354.0,37352.0,0.00023125]
[1643943273327,1.10327408,37354.0,37351.0,0.00491366]
[1643943273328,0.950375,37352.0,37351.0,0.00491366]
[1643943273726,1.100375,37352.0,37351.0,0.00491366]
[1643943273928,0.500375,37352.0,37351.0,0.00491366]
[1643943274327,0.81671982,37352.0,37351.0,0.00830756]
[1643943274528,0.86332592,37352.0,37351.0,0.00807631]
[1643943274827,0.81671982,37352.0,37351.0,0.00807631]
[1643943275230,0.400375,37352.0,37351.0,0.00830756]
[1643943275426,0.5469811,37352.0,37351.0,0.00830756]
[1643943275627,0.85047805,37352.0,37351.0,0.00830756]
[1643943275832,0.80763493,37352.0,37351.0,0.00830756]
[1643943276027,0.80763493,37352.0,37351.0,0.00807631]
[1643943276227,0.85424103,37352.0,37351.0,0.00807631]
[1643943276473,0.85424103,37352.0,37351.0,0.00491366]
[1643943276672,0.85424103,37352.0,37351.0,0.00830756]
[1643943277075,0.85424103,37352.0,37351.0,0.00807631]
[1643943277475,0.500375,37352.0,37351.0,0.00830756]
[1643943277676,0.5469811,37352.0,37351.0,0.00830756]
[1643943277876,0.500375,37352.0,37351.0,0.00830756]
[1643943278276,0.500375,37352.0,37351.0,0.00807631]
[1643943278678,0.500375,37352.0,37351.0,0.00830756]
[1643943279077,0.850375,37352.0,37351.0,0.00830756]
[1643943279279,0.500375,37352.0,37351.0,0.00830756]
[1643943279577,0.8493205,37352.0,37351.0,0.00807631]
[1643943279778,0.8493205,37352.0,37351.0,0.00830756]
[1643943279982,0.5469811,37352.0,37351.0,0.00830756]
[1643943280526,0.5469811,37352.0,37351.0,0.00491366]
[1643943280725,0.5469811,37352.0,37351.0,0.00468241]
[1643943281029,0.5469811,37352.0,37351.0,0.00807631]
[1643943281227,0.5469811,37352.0,37351.0,0.00830756]
[1643943281228,0.350375,37352.0,37351.0,0.00830756]
[1643943281426,0.06696,37354.0,37352.0,0.15175827]
[1643943281627,0.417335,37354.0,37353.0,0.0033939]
[1643943283631,0.417335,37354.0,37353.0,0.1057638]
[1643943284070,0.467335,37354.0,37353.0,0.00362515]
[1643943284471,0.417335,37354.0,37353.0,0.0033939]
[1643943284671,0.467335,37354.0,37353.0,0.0033939]
[1643943285070,0.467335,37354.0,37353.0,0.10788537]
[1643943285272,0.400375,37354.0,37353.0,0.10788537]
[1643943285972,0.400375,37354.0,37353.0,0.10449147]
[1643943285973,0.4469811,37354.0,37353.0,0.10449147]
[1643943286276,0.5469811,37354.0,37353.0,0.10449147]
[1643943286976,0.400375,37354.0,37353.0,0.37930897]
[1643943287176,0.05,37354.0,37353.0,0.10788537]
[1643943287376,0.00076603,37355.0,37353.0,0.10788537]
[1643943287577,0.00076603,37355.0,37353.0,0.15811662]
[1643943287829,0.350375,37359.0,37353.0,0.4123363]
[1643943288028,0.350375,37359.0,37358.0,0.0033939]
[1643943288831,0.800375,37359.0,37358.0,0.0033939]
[1643943289228,1.2,37358.0,37353.0,0.40871115]
[1643943290329,0.00076602,37357.0,37353.0,0.40871115]
[1643943290629,0.350375,37356.0,37353.0,0.40871115]
[1643943290829,0.00076602,37357.0,37353.0,0.40871115]
[1643943291028,0.350375,37356.0,37353.0,0.40871115]
[1643943291481,0.350375,37356.0,37351.0,0.00544854]
[1643943291482,0.35114103,37356.0,37351.0,0.00544854]
[1643943291678,0.35114103,37356.0,37351.0,0.27388967]
[1643943291878,0.35114103,37356.0,37351.0,0.00544854]
[1643943292278,0.21277187,37355.0,37351.0,0.05544854]
[1643943292479,0.417325,37354.0,37351.0,0.00468241]
[1643943292682,0.06695,37354.0,37351.0,0.00544852]
[1643943293680,0.06695,37354.0,37351.0,0.00468241]
[1643943293881,0.06695,37354.0,37351.0,0.00544853]
[1643943294885,0.06695,37354.0,37351.0,0.00468241]
[1643943295082,0.06695,37354.0,37351.0,0.00544853]
[1643943296130,0.06695,37354.0,37351.0,0.00468241]
[1643943296327,0.06695,37354.0,37351.0,0.00544853]
[1643943297227,0.06695,37354.0,37351.0,0.00468241]
[1643943297428,0.06695,37354.0,37351.0,0.00544853]
[1643943297828,0.06695,37354.0,37352.0,0.0538]
[1643943298129,0.00076603,37355.0,37352.0,0.0538]
[1643943298328,0.00076603,37355.0,37353.0,0.30179268]
[1643943298628,0.06876915,37363.0,37354.0,0.4038]
[1643943298831,0.00076603,37355.0,37354.0,0.0538]
[1643943299077,0.00076603,37355.0,37354.0,0.13429235]
[1643943299779,0.066936,37360.0,37354.0,0.13429235]
[1643943300079,0.00076603,37356.0,37355.0,0.28510332]
[1643943300277,0.00076603,37356.0,37355.0,0.1038]
[1643943300577,0.00076603,37356.0,37355.0,0.0538]
[1643943300977,0.34214782,37362.0,37355.0,0.0538]
[1643943300978,0.066937,37360.0,37355.0,0.0538]
[1643943301178,0.00076602,37357.0,37355.0,0.0538]
[1643943301983,0.06770702,37357.0,37355.0,0.0538]
[1643943302181,0.06770702,37357.0,37351.0,0.01014856]
[1643943302182,1.950375,37356.0,37351.0,0.00938241]
[1643943302381,0.21891936,37353.0,37351.0,0.00544856]
[1643943302582,0.26891936,37353.0,37351.0,0.00544856]
[1643943302825,1.56379019,37352.0,37351.0,0.00544856]
[1643943303028,1.91416519,37352.0,37351.0,0.00544856]
[1643943303224,1.56379019,37352.0,37351.0,0.00468241]
[1643943303425,0.66416519,37352.0,37351.0,0.00468241]
[1643943303828,1.01416519,37352.0,37351.0,0.00468241]
[1643943304227,0.66416519,37352.0,37351.0,0.00468241]
[1643943305226,0.66416519,37352.0,37351.0,0.00491068]
[1643943305830,0.66416519,37352.0,37351.0,0.00468241]
[1643943306328,0.66416519,37352.0,37351.0,0.00491068]
[1643943307176,0.66416519,37352.0,37351.0,0.00468241]
[1643943307376,0.66416519,37352.0,37351.0,0.00491068]
[1643943308376,0.66416519,37352.0,37351.0,0.00468241]
[1643943308875,0.66416519,37352.0,37351.0,0.00491068]
[1643943309076,0.71416519,37352.0,37351.0,0.00491068]
[1643943309479,0.71416519,37352.0,37351.0,0.00468241]
[1643943309676,0.66416519,37352.0,37351.0,0.00468241]
[1643943309876,0.66416519,37352.0,37351.0,0.00491068]
[1643943310078,0.31379019,37352.0,37351.0,0.00491068]
[1643943310327,0.31379019,37352.0,37351.0,0.0912327]
[1643943310727,0.066951,37353.0,37351.0,0.0912327]
[1643943310928,0.06771002,37355.0,37351.0,0.0912327]
[1643943311328,0.00076602,37355.0,37351.0,0.41124083]
[1643943311527,0.00076602,37355.0,37352.0,0.0538]
[1643943311528,0.00050853,37355.0,37352.0,0.0538]
[1643943311730,0.5,37360.0,37353.0,0.36625476]
[1643943311731,0.05,37359.0,37353.0,0.36625476]
[1643943311928,0.33559067,37359.0,37353.0,0.05]
[1643943312133,0.33559067,37359.0,37353.0,0.05022827]
[1643943312329,0.28559067,37359.0,37353.0,0.00022827]
[1643943312528,0.28559067,37359.0,37357.0,0.09161028]
[1643943312729,0.950375,37358.0,37357.0,0.14161028]
[1643943312929,0.350375,37358.0,37357.0,0.14161028]
[1643943313128,0.417314,37358.0,37357.0,0.14161028]
[1643943313976,0.467314,37358.0,37357.0,0.14161028]
[1643943314176,0.417314,37358.0,37357.0,0.14161028]
[1643943314381,0.00047299,37359.0,37357.0,0.64720296]
[1643943314576,0.00047299,37359.0,37357.0,0.19563855]
[1643943314976,0.00047299,37359.0,37357.0,0.19541028]
[1643943315381,3.01508639,37367.0,37357.0,0.19541028]
[1643943315577,0.00076619,37360.0,37357.0,0.50144461]
[1643943316178,0.00076619,37360.0,37357.0,0.19541028]
[1643943316480,0.28080558,37363.0,37357.0,0.69186418]
[1643943316678,0.400375,37362.0,37357.0,0.42331229]
[1643943316879,0.00076619,37360.0,37357.0,0.19541028]
[1643943317081,0.00076619,37360.0,37357.0,0.45899262]
[1643943317285,0.00076619,37360.0,37357.0,0.51253291]
[1643943317482,0.00076619,37360.0,37358.0,0.22790201]
[1643943317733,2.73416476,37367.0,37359.0,0.37463507]
[1643943318327,0.32568928,37364.0,37359.0,0.37463507]
[1643943318528,0.350375,37363.0,37360.0,0.066923]
[1643943319126,0.35114054,37363.0,37360.0,0.066923]
[1643943319327,0.35114054,37363.0,37359.0,0.15733787]
[1643943319828,0.35114054,37363.0,37359.0,0.1038]
[1643943320227,0.350375,37363.0,37359.0,0.1038]
[1643943320426,0.35114055,37363.0,37359.0,0.1038]
[1643943321227,0.13034724,37364.0,37359.0,0.1038]
[1643943321481,0.400391,37363.0,37359.0,0.1038]
[1643943325723,0.400391,37363.0,37360.0,0.30339438]
[1643943325928,0.350391,37363.0,37360.0,0.30339438]
[1643943326126,0.05,37367.0,37361.0,0.404191]
[1643943326322,0.05,37367.0,37362.0,0.30339438]
[1643943326323,0.045,37367.0,37362.0,0.30339438]
[1643943326526,0.045,37367.0,37363.0,0.404191]
[1643943326721,0.5,37371.0,37363.0,0.404191]
[1643943326922,0.70307855,37371.0,37367.0,0.28292016]
[1643943327124,0.01937281,37372.0,37368.0,0.0538]
[1643943327323,0.350391,37371.0,37368.0,0.0538]
[1643943327725,0.395,37369.0,37368.0,0.0538]
[1643943327925,0.045,37369.0,37368.0,0.0538]
[1643943328224,0.395,37369.0,37368.0,0.0538]
[1643943328724,0.045,37369.0,37368.0,0.0538]
[1643943328983,0.045,37369.0,37368.0,0.05871302]
[1643943328984,0.995,37369.0,37368.0,0.05871302]
[1643943329183,0.045,37369.0,37368.0,0.05371302]
[1643943330183,0.045,37369.0,37368.0,0.05871302]
[1643943330683,0.395391,37369.0,37368.0,0.05871302]
[1643943330883,0.395391,37369.0,37368.0,0.05371302]
[1643943331483,0.395391,37369.0,37368.0,0.05871302]
[1643943331684,0.395391,37369.0,37368.0,0.05371302]
[1643943333126,0.395391,37369.0,37368.0,0.05871302]
[1643943333627,0.350391,37369.0,37368.0,0.33229246]
[1643943333830,0.02153196,37373.0,37369.0,1.85]
[1643943334031,0.22986523,37385.0,37373.0,0.8]
[1643943334227,1.6778,37388.0,37384.0,0.005]
[1643943334228,1.16936523,37388.0,37384.0,0.005]
[1643943334428,1.16936523,37388.0,37387.0,0.005]
[1643943334429,0.4739,37388.0,37387.0,0.005]
[1643943334732,0.0011,37389.0,37388.0,0.350171]
[1643943334927,0.0011,37389.0,37388.0,0.403971]
[1643943335331,0.0022,37393.0,37389.0,1.2]
[1643943335535,0.0022,37393.0,37392.0,0.005]
[1643943335730,0.0022,37393.0,37392.0,0.71230738]
[1643943335931,0.0001,37393.0,37392.0,0.34719438]
[1643943336129,0.0001,37393.0,37392.0,0.403913]
[1643943336328,0.0001,37393.0,37392.0,0.54589026]
[1643943336578,0.0001,37393.0,37392.0,0.403913]
[1643943336779,0.0001,37393.0,37392.0,0.57291414]
[1643943336978,0.0001,37393.0,37392.0,1.39757668]
[1643943337380,0.0001,37393.0,37392.0,1.075813]
[1643943337981,0.0001,37393.0,37392.0,1.40356337]
[1643943338185,0.0011,37398.0,37395.0,0.05]
[1643943338383,0.0011,37398.0,37396.0,0.0538]
[1643943339581,0.0011,37398.0,37396.0,0.403869]
[1643943339781,0.0011,37398.0,37396.0,0.0538]
[1643943341025,0.0511,37398.0,37396.0,0.0538]
[1643943341227,0.0511,37398.0,37396.0,0.403869]
[1643943341825,0.0511,37398.0,37396.0,0.0538]
[1643943342026,1.351491,37397.0,37396.0,0.0538]
[1643943342226,0.701491,37397.0,37396.0,0.0538]
[1643943342627,0.751491,37397.0,37390.0,0.6719]
[1643943342829,1.15,37389.0,37383.0,0.05]
[1643943343027,0.05,37387.0,37384.0,0.350193]
[1643943343226,0.30209598,37396.0,37385.0,0.35019]
[1643943343227,0.05,37392.0,37385.0,0.35019]
[1643943343432,0.05,37392.0,37381.0,0.00307028]
[1643943343728,1.15,37390.0,37389.0,0.22871566]
[1643943343976,0.05,37390.0,37389.0,0.22871566]
[1643943344275,0.400391,37390.0,37389.0,0.22871566]
[1643943344877,0.6655683,37390.0,37389.0,0.22871566]
[1643943345078,0.05,37389.0,37381.0,0.00307008]
[1643943345377,0.30847114,37388.0,37382.0,0.350214]
[1643943345576,0.05,37385.0,37382.0,0.350214]
[1643943345776,0.05,37385.0,37381.0,0.350232]
[1643943345982,0.29473229,37389.0,37382.0,0.27601524]
[1643943346178,0.05,37384.0,37383.0,0.35021]
[1643943346976,0.05,37384.0,37383.0,0.34521]
[1643943348637,0.05,37384.0,37381.0,0.345239]
[1643943348927,0.29815866,37388.0,37381.0,0.345239]
[1643943348928,0.75,37382.0,37381.0,0.345239]
[1643943349127,0.05,37382.0,37381.0,0.345239]
[1643943349730,0.69704059,37382.0,37380.0,0.00076746]
[1643943349930,1.2,37381.0,37380.0,0.00076746]
[1643943350132,0.23867988,37377.0,37374.0,0.15]
[1643943350529,0.23867988,37377.0,37373.0,0.28684431]
[1643943350729,0.23867988,37377.0,37374.0,0.24194273]
[1643943351032,0.4,37375.0,37374.0,0.24194273]
[1643943351232,0.05,37375.0,37374.0,0.24194273]
[1643943351880,0.05,37375.0,37374.0,0.58725973]
[1643943352283,0.05,37375.0,37374.0,0.39194273]
[1643943352482,0.05,37375.0,37374.0,0.24194273]
[1643943353586,0.01613005,37377.0,37374.0,0.24194273]
[1643943353786,0.06613005,37377.0,37375.0,0.345309]
[1643943354783,0.06613005,37377.0,37374.0,0.24194273]
[1643943355235,0.01613005,37377.0,37374.0,0.24265412]
[1643943355630,0.06613005,37377.0,37374.0,0.24265412]
[1643943356532,0.01613005,37377.0,37374.0,0.24265412]
[1643943356731,0.06613005,37377.0,37374.0,0.24265412]
[1643943357133,0.30692326,37380.0,37374.0,0.24265412]
[1643943357331,0.30692326,37380.0,37374.0,0.24194273]
[1643943357332,0.05,37377.0,37374.0,0.24194273]
[1643943357531,0.05,37377.0,37375.0,0.00071138]
[1643943358635,0.05,37377.0,37374.0,0.24194273]
[1643943358838,0.05,37377.0,37374.0,0.24265412]
[1643943359777,0.05,37377.0,37374.0,0.24194273]
[1643943359978,0.05,37377.0,37374.0,0.24265786]
[1643943360878,0.05,37377.0,37374.0,0.24194273]
[1643943361280,0.05,37375.0,37374.0,0.58797486]
[1643943361483,0.05,37375.0,37374.0,0.24265786]
[1643943361682,0.05,37375.0,37374.0,0.58797386]
[1643943362082,0.05,37375.0,37371.0,0.08530302]
[1643943362283,0.06690302,37376.0,37374.0,0.22896877]
[1643943362727,0.75,37375.0,37374.0,0.22896877]
[1643943363129,0.05,37375.0,37374.0,0.22896877]
[1643943363728,0.06690302,37376.0,37374.0,0.22896877]
[1643943363929,1.0,37375.0,37374.0,0.22896877]
[1643943364131,0.06690302,37376.0,37374.0,0.22896877]
[1643943364328,0.05,37375.0,37374.0,0.22896877]
[1643943365830,0.05,37375.0,37371.0,0.001]
[1643943366036,0.05,37375.0,37372.0,0.00071436]
[1643943366037,0.350363,37374.0,37372.0,0.00071436]
[1643943366234,2.80714028,37373.0,37372.0,0.00071436]
[1643943366482,2.554163,37373.0,37372.0,0.00071436]
[1643943366685,2.654163,37373.0,37372.0,0.00071436]
[1643943366882,2.88933632,37373.0,37371.0,0.001]
[1643943367081,0.350363,37372.0,37371.0,0.00171438]
[1643943367282,0.450363,37372.0,37371.0,0.00171438]
[1643943367483,0.303879,37372.0,37371.0,0.00171438]
[1643943368083,1.803879,37372.0,37371.0,0.001]
[1643943369387,1.753879,37372.0,37371.0,0.001]
[1643943369584,1.853879,37372.0,37371.0,0.001]
[1643943371538,1.907679,37372.0,37371.0,0.001]
[1643943372534,1.54795526,37372.0,37371.0,0.001]
[1643943374385,0.554165,37372.0,37371.0,0.001]
[1643943376087,0.85277625,37372.0,37371.0,0.001]
[1643943376488,0.554165,37372.0,37371.0,0.001]
[1643943376888,0.84601189,37372.0,37371.0,0.001]
[1643943379639,1.21328362,37372.0,37371.0,0.001]
[1643943380637,1.21183482,37372.0,37371.0,0.001]
[1643943384686,1.21045995,37372.0,37371.0,0.001]
[1643943390386,0.92143673,37372.0,37371.0,0.001]
[1643943390883,0.77143673,37372.0,37371.0,0.001]
[1643943391284,1.05971285,37372.0,37371.0,0.001]
[1643943391785,1.06731676,37372.0,37371.0,0.001]
[1643943391985,0.26031363,37366.0,37364.0,0.04570346]
[1643943392187,0.61067863,37366.0,37360.0,0.001]
[1643943392385,0.26031363,37366.0,37360.0,0.001]
[1643943392588,0.31031363,37366.0,37361.0,0.350365]
[1643943393233,0.31031363,37366.0,37362.0,0.29006907]
[1643943393632,0.31031363,37366.0,37363.0,0.350365]
[1643943393833,0.26031363,37366.0,37363.0,0.350365]
[1643943394234,0.05,37364.0,37363.0,0.350365]
[1643943396783,0.05,37367.0,37363.0,0.7057998]
[1643943396983,0.06691224,37371.0,37364.0,0.350365]
[1643943397185,0.06691224,37371.0,37365.0,0.3054348]
[1643943397383,0.05,37372.0,37365.0,0.3554348]
[1643943397584,0.000766,37374.0,37366.0,0.350365]
[1643943397790,0.000766,37374.0,37372.0,0.27744502]
[1643943398187,0.2389843,37375.0,37372.0,0.27744502]
[1643943398387,0.2389843,37375.0,37373.0,0.350355]
[1643943398388,0.30665508,37375.0,37373.0,0.350355]
[1643943398787,0.06767078,37375.0,37373.0,0.350355]
[1643943398991,0.57631,37387.0,37373.0,0.350355]
[1643943398992,0.52408561,37391.0,37376.0,1.3]
[1643943399193,0.22965867,37390.0,37382.0,0.15]
[1643943399388,0.22965867,37390.0,37388.0,0.05]
[1643943399589,0.22965867,37392.0,37389.0,0.05]
[1643943399788,0.0011,37393.0,37389.0,0.05]
[1643943399789,0.23075867,37393.0,37389.0,0.05]
[1643943399989,0.0011,37393.0,37391.0,0.05]
[1643943400250,0.0011,37393.0,37390.0,0.31810243]
[1643943400450,0.0011,37393.0,37391.0,0.350163]
[1643943400649,0.05,37390.0,37379.0,0.05]
[1643943400846,0.0011,37393.0,37378.0,0.05]
[1643943400847,0.57998167,37389.0,37378.0,0.05]
[1643943401047,0.350329,37388.0,37378.0,0.05]
[1643943401245,0.00674429,37392.0,37387.0,0.05]
[1643943401446,0.0011,37393.0,37384.0,0.05]
[1643943401447,0.350329,37391.0,37384.0,0.05]
[1643943401645,0.350329,37391.0,37387.0,0.28969375]
[1643943401844,0.82020319,37388.0,37387.0,0.28969375]
[1643943402045,0.350329,37387.0,37382.0,0.07817451]
[1643943402647,0.400329,37387.0,37384.0,0.05]
[1643943402844,0.350329,37387.0,37384.0,0.05]
[1643943404390,0.350329,37387.0,37385.0,0.07097538]
[1643943404588,0.350329,37387.0,37385.0,2.02095063]
[1643943404789,0.350329,37386.0,37385.0,2.02095063]
[1643943405190,0.352829,37386.0,37385.0,2.01845063]
[1643943405391,0.0025,37386.0,37385.0,2.01845063]
[1643943405595,0.00326658,37387.0,37385.0,2.36877963]
[1643943405793,0.00326658,37387.0,37386.0,0.032103]
[1643943406192,0.22231414,37387.0,37386.0,0.032103]
[1643943406393,0.00326658,37387.0,37386.0,0.032103]
[1643943406593,0.0025,37387.0,37386.0,0.032103]
[1643943410440,0.00076657,37388.0,37386.0,0.032103]
[1643943410638,0.0025,37387.0,37386.0,0.032103]
[1643943410842,0.00076657,37388.0,37386.0,0.079603]
[1643943411051,0.00076657,37388.0,37387.0,0.27353817]
[1643943411243,0.00076657,37388.0,37387.0,0.350329]
[1643943411498,1.18,37388.0,37387.0,0.350329]
[1643943411699,0.432829,37388.0,37386.0,0.0475]
[1643943411899,0.0825,37388.0,37387.0,0.350329]
[1643943412298,0.35236614,37388.0,37384.0,0.0475]
[1643943412499,0.08,37388.0,37386.0,0.0475]
[1643943412699,0.0025,37387.0,37386.0,0.0475]
[1643943412898,0.0025,37387.0,37386.0,0.397829]
[1643943413098,0.0025,37387.0,37386.0,0.350329]
[1643943413700,0.0025,37387.0,37384.0,0.0475]
[1643943413901,0.32221744,37388.0,37386.0,0.0475]
[1643943414100,0.0025,37387.0,37384.0,0.0475]
[1643943414300,0.32298401,37388.0,37384.0,0.0475]
[1643943414502,0.0025,37385.0,37384.0,0.0475]
[1643943414701,0.0825,37385.0,37384.0,0.350329]
[1643943415101,0.0825,37385.0,37382.0,0.0475]
[1643943415345,0.0825,37385.0,37383.0,0.350329]
[1643943417349,0.1325,37385.0,37383.0,0.350329]
[1643943417749,0.0825,37385.0,37383.0,0.350329]
[1643943418753,0.0825,37385.0,37380.0,0.0475]
[1643943418987,0.0025,37381.0,37380.0,0.0475]
[1643943419187,0.0025,37381.0,37380.0,0.350329]
[1643943419386,0.0025,37381.0,37380.0,0.397829]
[1643943419588,0.0025,37381.0,37380.0,0.350329]
[1643943420186,0.0025,37381.0,37380.0,0.397829]
[1643943420387,0.0025,37381.0,37380.0,0.350329]
[1643943421588,0.07907148,37382.0,37380.0,0.400329]
[1643943421989,0.21280744,37379.0,37376.0,0.3023967]
[1643943422189,0.07830486,37378.0,37377.0,0.03217]
[1643943422389,0.00076665,37379.0,37377.0,0.27892889]
[1643943422588,0.00076665,37379.0,37378.0,0.13712525]
[1643943423455,0.28829222,37384.0,37378.0,0.13712525]
[1643943423657,0.00076664,37380.0,37378.0,0.13712525]
[1643943424557,0.05,37381.0,37378.0,0.13712525]
[1643943424758,0.23829222,37384.0,37379.0,0.26121074]
[1643943424958,0.11688874,37385.0,37379.0,0.26121074]
[1643943424959,0.00076663,37381.0,37379.0,0.26121074]
[1643943425156,0.00076663,37381.0,37380.0,0.032161]
[1643943425856,0.05,37385.0,37380.0,0.032161]
[1643943426057,0.05,37381.0,37379.0,0.26121074]
[1643943426256,0.05,37381.0,37380.0,0.03216]
[1643943429721,0.00076662,37382.0,37380.0,0.03216]
[1643943430640,0.05,37383.0,37380.0,0.03216]
[1643943430841,0.05076662,37383.0,37380.0,0.03216]
[1643943431442,0.05076662,37383.0,37378.0,0.17185025]
[1643943431641,0.05076662,37383.0,37379.0,0.032162]
[1643943431844,0.05,37383.0,37379.0,0.032162]
[1643943432042,0.00076662,37382.0,37379.0,0.032162]
[1643943433143,0.049,37385.0,37381.0,0.001]
[1643943433343,0.00076662,37382.0,37378.0,0.17185025]
[1643943433544,0.00076662,37382.0,37381.0,0.001]
[1643943434191,0.049,37385.0,37381.0,0.001]
[1643943434395,0.00076661,37383.0,37381.0,0.001]
[1643943434992,0.049,37382.0,37381.0,0.001]
[1643943435794,0.049,37382.0,37379.0,0.001]
[1643943435995,0.06765886,37383.0,37380.0,0.03216]
[1643943436194,0.049,37381.0,37380.0,0.03216]
[1643943437844,0.06688801,37385.0,37380.0,0.03216]
[1643943437845,0.11588801,37385.0,37380.0,0.03216]
[1643943438044,0.06688801,37385.0,37382.0,0.001]
[1643943438248,0.350344,37384.0,37382.0,0.001]
[1643943438645,0.399344,37384.0,37382.0,0.001]
[1643943441693,0.399344,37384.0,37380.0,0.001]
[1643943441893,0.06765461,37385.0,37380.0,0.001]
[1643943442297,0.049,37382.0,37380.0,0.001]
[1643943442494,0.049,37382.0,37381.0,0.032159]
[1643943443293,0.049,37382.0,37379.0,0.22854891]
[1643943443294,0.049,37382.0,37380.0,0.032161]
[1643943445544,0.049,37382.0,37380.0,0.25970991]
[1643943449396,0.049,37382.0,37380.0,0.032161]
[1643943450596,0.049,37382.0,37381.0,0.001]
[1643943450797,0.049,37382.0,37381.0,0.2675185]
[1643943450997,0.049,37382.0,37381.0,0.26070891]
[1643943451197,0.22945105,37387.0,37381.0,0.001]
[1643943451397,0.00076661,37383.0,37382.0,0.032155]
[1643943451597,0.04976661,37383.0,37382.0,0.032155]
[1643943451998,0.04976661,37383.0,37381.0,0.2289586]
[1643943452196,0.06688713,37385.0,37382.0,0.03960657]
[1643943452397,0.01039343,37383.0,37382.0,0.4858688]
[1643943452601,0.01039343,37383.0,37382.0,0.22796613]
[1643943452845,0.01039343,37383.0,37381.0,0.51233233]
[1643943453244,0.01039343,37383.0,37382.0,0.03960657]
[1643943453545,0.06688713,37385.0,37382.0,0.26012313]
[1643943453744,0.01039343,37383.0,37382.0,0.22796613]
[1643943453945,0.01039343,37383.0,37382.0,0.26012213]
[1643943454145,0.01039343,37383.0,37382.0,0.51900445]
[1643943454845,0.01039343,37383.0,37382.0,0.48684845]
[1643943455151,0.01039343,37383.0,37382.0,0.2675727]
[1643943455345,0.01039343,37383.0,37382.0,0.2997297]
[1643943455547,0.01039343,37383.0,37382.0,0.26012313]
[1643943455746,0.07728778,37383.0,37382.0,0.26012313]
[1643943456046,0.01039343,37383.0,37382.0,0.22796613]
[1643943456247,0.01039343,37383.0,37382.0,0.49295872]
[1643943457495,0.00076717,37385.0,37382.0,0.79580955]
[1643943457701,0.23023434,37388.0,37384.0,2.57127905]
[1643943457702,0.00037169,37388.0,37384.0,2.57127905]
[1643943457895,0.00037169,37391.0,37388.0,0.032141]
[1643943458095,0.00037169,37391.0,37390.0,2.00652412]
[1643943458296,0.00147169,37393.0,37391.0,0.032135]
[1643943458495,0.00147169,37393.0,37392.0,1.13960657]
[1643943458697,0.0011,37393.0,37392.0,0.09340657]
[1643943459896,0.0011,37393.0,37392.0,0.0538]
[1643943460097,0.26236744,37393.0,37391.0,0.032133]
[1643943460354,0.46039343,37392.0,37391.0,0.032133]
[1643943460549,0.01039343,37392.0,37391.0,0.032133]
[1643943462452,0.00223938,37393.0,37391.0,0.032133]
[1643943462654,0.00223938,37393.0,37392.0,0.03960657]
[1643943462956,0.01226112,37393.0,37392.0,0.03960657]
[1643943463150,0.01226112,37393.0,37390.0,0.032134]
[1643943463151,0.01149343,37393.0,37390.0,0.032134]
[1643943463351,0.01039343,37391.0,37390.0,0.032134]
[1643943463554,0.01039343,37391.0,37390.0,0.28687532]
[1643943463753,0.01039343,37391.0,37390.0,0.032134]
[1643943465498,0.00037169,37392.0,37390.0,0.032134]
[1643943465695,0.01039343,37391.0,37390.0,0.032134]
[1643943466998,0.01039343,37391.0,37390.0,0.07174057]
[1643943467198,0.00113938,37392.0,37390.0,0.07174057]
[1643943467398,0.00113938,37392.0,37390.0,0.13860757]
[1643943467601,0.01153281,37392.0,37390.0,0.13860757]
[1643943467844,0.00037169,37392.0,37390.0,0.13860757]
[1643943468047,0.00223938,37393.0,37390.0,0.13860757]
[1643943468246,0.01039343,37392.0,37390.0,0.13860757]
[1643943468444,0.01039343,37391.0,37390.0,0.20547457]
[1643943468644,0.01076512,37392.0,37390.0,0.49421212]
[1643943468845,0.01039343,37392.0,37391.0,0.032134]
[1643943469046,0.0011,37393.0,37391.0,0.38448192]
[1643943469250,0.00186769,37393.0,37392.0,0.35577359]